fUSD/lending_fUSD_20250611
["ID","MTS","AMOUNT","RATE_DAILY","PERIOD"]
[365432018,1749666655462,-1667.03714163,0.00019576,2]
[365432019,1749666655473,-803.66341868,0.00019576,2]
[365432020,1749666655483,-300.0,0.00019577,2]
[365432021,1749666655491,-600.0,0.00019577,4]
[365432022,1749666655502,-47.26470707,0.00019597,2]
[365432023,1749666655525,-642.74347913,0.00019597,2]
[365432024,1749666655534,-869.166718,0.00019599,2]
[365432025,1749666655544,-420.0,0.00019638,2]
[365432026,1749666655553,-690.0081862,0.0001964,2]
[365432027,1749666655562,-500.0,0.0001967,2]
[365432028,1749666655571,-637.75,0.0001967,2]
[365432029,1749666655581,-877.52,0.0001967,2]
[365432030,1749666655590,-2205.01643949,0.00019671,2]
[365432031,1749666655600,-156.41,0.00019671,2]
[365432032,1749666655610,-490.0,0.00019671,2]
[365432033,1749666655619,-491.19,0.00019671,2]
[365432034,1749666655629,-490.0,0.00019671,2]
[365432035,1749666655639,-490.0,0.00019671,2]
[365432036,1749666655649,-695.34,0.00019671,2]
[365432037,1749666655659,-490.0,0.00019671,2]
[365432038,1749666655668,-576.06,0.00019671,2]
[365432039,1749666655678,-651.15,0.00019671,2]
[365432040,1749666655688,-490.0,0.00019671,2]
[365432041,1749666655699,-490.0,0.00019671,2]
[365432042,1749666655709,-667.0,0.00019671,2]
[365432043,1749666655718,-490.0,0.00019671,2]
[365432044,1749666655728,-490.0,0.00019671,2]
[365432045,1749666655740,-490.0,0.00019671,2]
[365432046,1749666655751,-490.0,0.00019671,2]
[365432047,1749666655762,-490.0,0.00019671,2]
[365432048,1749666655771,-490.0,0.00019671,2]
[365432049,1749666655782,-490.0,0.00019671,2]
[365432050,1749666655792,-490.0,0.00019671,2]
[365432051,1749666655802,-490.0,0.00019671,2]
[365432052,1749666655812,-581.38,0.00019671,2]
[365432053,1749666655822,-490.0,0.00019671,2]
[365432054,1749666655831,-490.0,0.00019671,2]
[365432055,1749666655842,-490.0,0.00019671,2]
[365432056,1749666655852,-546.31,0.00019671,2]
[365432057,1749666655862,-535.43,0.00019671,2]
[365432058,1749666655872,-490.0,0.00019671,2]
[365432059,1749666655882,-516.47,0.00019671,2]
[365432060,1749666655958,-490.0,0.00019671,2]
[365432061,1749666655968,-707.63,0.00019671,2]
[365432062,1749666655978,-490.0,0.00019671,2]
[365432063,1749666655987,-639.53,0.00019671,2]
[365432064,1749666655996,-1527.267614,0.00019671,2]
[365432065,1749666656006,-490.0,0.00019671,2]
[365432066,1749666656016,-502.31,0.00019671,2]
[365432067,1749666656025,-490.0,0.00019671,2]
[365432068,1749666656034,-516.57,0.00019671,2]
[365432069,1749666656043,-490.0,0.00019671,2]
[365432070,1749666656052,-490.0,0.00019671,2]
[365432071,1749666656062,-490.0,0.00019671,2]
[365432072,1749666656071,-538.45,0.00019671,2]
[365432073,1749666656080,-1025.629265,0.00019671,2]
[365432074,1749666656090,-490.0,0.00019671,2]
[365432075,1749666656099,-490.0,0.00019671,2]
[365432076,1749666656109,-389.2216723,0.00019671,2]
[365432077,1749666656118,-490.0,0.00019671,2]
[365432078,1749666656127,-490.0,0.00019671,2]
[365432079,1749666656137,-490.0,0.00019671,2]
[365432080,1749666656146,-490.0,0.00019671,2]
[365432081,1749666656156,-809.64,0.00019671,2]
[365432082,1749666656165,-490.0,0.00019671,2]
[365432083,1749666656175,-490.0,0.00019671,2]
[365432084,1749666656185,-490.0,0.00019671,2]
[365432085,1749666656194,-189.79,0.00019671,2]
[365432086,1749666656205,-490.0,0.00019671,2]
[365432087,1749666656215,-490.0,0.00019671,2]
[365432088,1749666656224,-490.0,0.00019671,2]
[365432089,1749666656234,-490.0,0.00019671,2]
[365432090,1749666656244,-490.0,0.00019671,2]
[365432091,1749666656253,-490.0,0.00019671,2]
[365432092,1749666656263,-490.0,0.00019671,2]
[365432093,1749666656272,-530.15,0.00019671,2]
[365432094,1749666656281,-490.0,0.00019671,2]
[365432095,1749666656291,-490.0,0.00019671,2]
[365432096,1749666656300,-490.0,0.00019671,2]
[365432097,1749666656309,-490.0,0.00019671,2]
[365432098,1749666656319,-490.0,0.00019671,2]
[365432099,1749666656330,-490.0,0.00019671,2]
[365432100,1749666656339,-490.0,0.00019671,2]
[365432101,1749666656349,-524.2,0.00019671,2]
[365432102,1749666656358,-490.0,0.00019671,2]
[365432103,1749666656368,-490.0,0.00019671,2]
[365432104,1749666656377,-711.92,0.00019671,2]
[365432105,1749666656386,-490.0,0.00019671,2]
[365432106,1749666656397,-589.9981834,0.00019671,2]
[365432107,1749666656408,-524.6,0.00019671,2]
[365432108,1749666656417,-468.08,0.00019671,2]
[365432109,1749666656427,-490.0,0.00019671,2]
[365432110,1749666656436,-228.71,0.00019671,2]
[365432111,1749666656447,-490.0,0.00019671,2]
[365432112,1749666656456,-490.0,0.00019671,2]
[365432113,1749666656465,-490.0,0.00019671,2]
[365432114,1749666656475,-490.0,0.00019671,2]
[365432115,1749666656483,-2172.39,0.00019671,2]
[365432116,1749666656493,-628.46,0.00019671,2]
[365432117,1749666656502,-490.0,0.00019671,2]
[365432118,1749666656512,-738.78,0.00019671,2]
[365432119,1749666656521,-270.27870847,0.00019671,2]
[365432120,1749666656531,-786.19,0.00019671,2]
[365432121,1749666656540,-4967.78,0.00019671,2]
[365432122,1749666656549,-490.0,0.00019671,2]
[365432123,1749666656559,-490.0,0.00019671,2]
[365432124,1749666656568,-490.0,0.00019671,2]
[365432125,1749666656578,-490.0,0.00019671,2]
[365432126,1749666656588,-697.72,0.00019671,2]
[365432127,1749666656597,-600.05,0.00019671,2]
[365432128,1749666656607,-563.76,0.00019671,2]
[365432129,1749666656616,-490.0,0.00019671,2]
[365432130,1749666656625,-490.0,0.00019671,2]
[365432131,1749666656634,-490.0,0.00019671,2]
[365432132,1749666656644,-480.0,0.00019671,2]
[365432133,1749666656653,-1084.41,0.00019671,2]
[365432134,1749666656662,-490.0,0.00019671,2]
[365432135,1749666656675,-524.74,0.00019671,2]
[365432136,1749666656685,-490.0,0.00019671,2]
[365432137,1749666656694,-490.0,0.00019671,2]
[365432138,1749666656707,-490.0,0.00019671,2]
[365432139,1749666656717,-490.0,0.00019671,2]
[365432140,1749666656728,-490.0,0.00019671,2]
[365432141,1749666656738,-672.06,0.00019671,2]
[365432142,1749666656748,-490.0,0.00019671,2]
[365432143,1749666656758,-490.0,0.00019671,2]
[365432144,1749666656768,-490.0,0.00019671,2]
[365432145,1749666656778,-490.0,0.00019671,2]
[365432146,1749666656788,-490.0,0.00019671,2]
[365432147,1749666656798,-2960.21,0.00019671,2]
[365432148,1749666656807,-592.64,0.00019671,2]
[365432149,1749666656816,-490.0,0.00019671,2]
[365432150,1749666656825,-6830.81,0.00019671,2]
[365432151,1749666656835,-2153.63,0.00019671,2]
[365432152,1749666656844,-622.08,0.00019671,2]
[365432153,1749666656854,-490.0,0.00019671,2]
[365432154,1749666656864,-490.0,0.00019671,2]
[365432155,1749666656874,-490.0,0.00019671,2]
[365432156,1749666656883,-952.96,0.00019671,2]
[365432157,1749666656894,-490.0,0.00019671,2]
[365432158,1749666656903,-490.0,0.00019671,2]
[365432159,1749666656913,-636.07,0.00019671,2]
[365432160,1749666656922,-490.0,0.00019671,2]
[365432161,1749666656931,-5835.59,0.00019671,2]
[365432162,1749666656941,-3419.09,0.00019671,2]
[365432163,1749666656953,-490.0,0.00019671,2]
[365432164,1749666656962,-1075.39,0.00019671,2]
[365432165,1749666656972,-723.16,0.00019671,2]
[365432166,1749666656981,-602.88,0.00019671,2]
[365432167,1749666656990,-648.55,0.00019671,2]
[365432168,1749666656999,-490.0,0.00019671,2]
[365432169,1749666657009,-490.0,0.00019671,2]
[365432170,1749666657018,-809.75,0.00019671,2]
[365432171,1749666657028,-490.0,0.00019671,2]
[365432172,1749666657037,-490.0,0.00019671,2]
[365432173,1749666657046,-729.02,0.00019671,2]
[365432174,1749666657055,-971.76,0.00019671,2]
[365432175,1749666657065,-490.0,0.00019671,2]
[365432176,1749666657074,-926.65,0.00019671,2]
[365432177,1749666657083,-490.0,0.00019671,2]
[365432178,1749666657092,-490.0,0.00019671,2]
[365432179,1749666657101,-490.0,0.00019671,2]
[365432180,1749666657110,-490.0,0.00019671,2]
[365432181,1749666657119,-230.45522713,0.00019671,2]
[365432182,1749666657127,-516.06,0.00019671,2]
[365432183,1749666657137,-212.99353419,0.00019671,2]
[365432184,1749666657146,-490.0,0.00019671,2]
[365432185,1749666657155,-490.0,0.00019671,2]
[365432186,1749666657165,-490.0,0.00019671,2]
[365432187,1749666657174,-490.0,0.00019671,2]
[365432188,1749666657184,-490.0,0.00019671,2]
[365432189,1749666657193,-544.83,0.00019671,2]
[365432190,1749666657205,-490.0,0.00019671,2]
[365432191,1749666657215,-490.0,0.00019671,2]
[365432192,1749666657225,-490.0,0.00019671,2]
[365432193,1749666657235,-490.0,0.00019671,2]
[365432194,1749666657244,-490.0,0.00019671,2]
[365432195,1749666657254,-598.79,0.00019671,2]
[365432196,1749666657263,-221.21,0.00019671,2]
[365432197,1749666657272,-574.23,0.00019671,2]
[365432198,1749666657282,-490.0,0.00019671,2]
[365432199,1749666657291,-490.0,0.00019671,2]
[365432200,1749666657300,-490.0,0.00019671,2]
[365432201,1749666657309,-490.0,0.00019671,2]
[365432202,1749666657319,-490.0,0.00019671,2]
[365432203,1749666657330,-637.67,0.00019671,2]
[365432204,1749666657340,-733.35,0.00019671,2]
[365432205,1749666657349,-490.0,0.00019671,2]
[365432206,1749666657358,-681.45,0.00019671,2]
[365432207,1749666657368,-490.0,0.00019671,2]
[365432208,1749666657378,-490.0,0.00019671,2]
[365432209,1749666657388,-490.0,0.00019671,2]
[365432210,1749666657397,-653.25,0.00019671,2]
[365432211,1749666657408,-667.57,0.00019671,2]
[365432212,1749666657419,-1444.65,0.00019671,2]
[365432213,1749666657428,-1494.96,0.00019671,2]
[365432214,1749666657438,-648.73,0.00019671,2]
[365432215,1749666657448,-605.664707,0.00019671,2]
[365432216,1749666657457,-490.0,0.00019671,2]
[365432217,1749666657467,-490.0,0.00019671,2]
[365432218,1749666657476,-675.71,0.00019671,2]
[365432219,1749666657485,-490.0,0.00019671,2]
[365432220,1749666657494,-490.0,0.00019671,2]
[365432221,1749666657504,-1045.89,0.00019671,2]
[365432222,1749666657513,-2032.66,0.00019671,2]
[365432223,1749666657522,-2026.38,0.00019671,2]
[365432224,1749666657531,-741.5,0.00019671,2]
[365432225,1749666657540,-490.0,0.00019671,2]
[365432226,1749666657550,-490.0,0.00019671,2]
[365432227,1749666657559,-848.6,0.00019671,2]
[365432228,1749666657570,-664.13,0.00019671,2]
[365432229,1749666657579,-490.0,0.00019671,2]
[365432230,1749666657589,-3588.59,0.00019671,2]
[365432231,1749666657598,-490.0,0.00019671,2]
[365432232,1749666657607,-1085.24,0.00019671,2]
[365432233,1749666657619,-490.0,0.00019671,2]
[365432234,1749666657628,-490.0,0.00019671,2]
[365432235,1749666657637,-490.0,0.00019671,2]
[365432236,1749666657646,-490.0,0.00019671,2]
[365432237,1749666657655,-1890.9,0.00019671,2]
[365432238,1749666657665,-490.0,0.00019671,2]
[365432239,1749666657674,-546.36,0.00019671,2]
[365432240,1749666657683,-490.0,0.00019671,2]
[365432241,1749666657693,-633.4,0.00019671,2]
[365432242,1749666657704,-490.0,0.00019671,2]
[365432243,1749666657713,-1000.0,0.00019671,2]
[365432244,1749666657722,-490.0,0.00019671,2]
[365432245,1749666657732,-559.44,0.00019671,2]
[365432246,1749666657741,-490.0,0.00019671,2]
[365432247,1749666657750,-490.0,0.00019671,2]
[365432248,1749666657759,-490.0,0.00019671,2]
[365432249,1749666657769,-490.0,0.00019671,2]
[365432250,1749666657779,-748.48,0.00019671,2]
[365432251,1749666657789,-490.0,0.00019671,2]
[365432252,1749666657799,-626.49,0.00019671,2]
[365432253,1749666657809,-1182.47,0.00019671,2]
[365432254,1749666657819,-503.19,0.00019671,2]
[365432255,1749666657828,-490.0,0.00019671,2]
[365432256,1749666657838,-522.08,0.00019671,2]
[365432257,1749666657847,-490.0,0.00019671,2]
[365432258,1749666657857,-684.32,0.00019671,2]
[365432259,1749666657867,-490.0,0.00019671,2]
[365432260,1749666657876,-490.0,0.00019671,2]
[365432261,1749666657885,-836.74,0.00019671,2]
[365432262,1749666657895,-490.0,0.00019671,2]
[365432263,1749666657905,-490.0,0.00019671,2]
[365432264,1749666657914,-788.39,0.00019671,2]
[365432265,1749666657924,-1479.29,0.00019671,2]
[365432266,1749666657934,-490.0,0.00019671,2]
[365432267,1749666657943,-490.0,0.00019671,2]
[365432268,1749666657955,-490.0,0.00019671,2]
[365432269,1749666657965,-490.0,0.00019671,2]
[365432270,1749666657975,-4066.47,0.00019671,2]
[365432271,1749666657984,-490.0,0.00019671,2]
[365432272,1749666657994,-490.0,0.00019671,2]
[365432273,1749666658003,-2138.82,0.00019671,2]
[365432274,1749666658012,-690.0081862,0.00019684,2]
[365432275,1749666658021,-1291.01,0.000197,2]
[365432276,1749666658031,-1000.0,0.000197,2]
[365432277,1749666658040,-937.756,0.00019717,2]
[365432278,1749666658049,-690.0081862,0.00019727,2]
[365432279,1749666658059,-205.0,0.00019728,5]
[365432280,1749666658067,-157.24630606,0.00019735,2]
[365432281,1749666658077,-1000.0,0.00019754,2]
[365432282,1749666658086,-690.0081862,0.0001977,2]
[365432283,1749666658096,-150.0,0.00019776,2]
[365432284,1749666658105,-150.0,0.000198,2]
[365432285,1749666658115,-1000.0,0.000198,2]
[365432286,1749666658124,-690.0081862,0.00019813,2]
[365432287,1749666658134,-153.0510303,0.00019825,2]
[365432288,1749666658144,-1000.0,0.00019834,2]
[365432289,1749666658154,-637.75,0.00019834,2]
[365432290,1749666658163,-877.52,0.00019834,2]
[365432291,1749666658173,-151.0,0.00019835,2]
[365432292,1749666658182,-151.966493,0.00019835,2]
[365432293,1749666658191,-151.0,0.00019835,2]
[365432294,1749666658202,-151.0,0.00019835,2]
[365432295,1749666658212,-153.123444,0.00019835,2]
[365432296,1749666658221,-490.0,0.00019835,2]
[365432297,1749666658231,-491.19,0.00019835,2]
[365432298,1749666658240,-490.0,0.00019835,2]
[365432299,1749666658250,-695.34,0.00019835,2]
[365432300,1749666658259,-490.0,0.00019835,2]
[365432301,1749666658268,-651.15,0.00019835,2]
[365432302,1749666658278,-490.0,0.00019835,2]
[365432303,1749666658287,-490.0,0.00019835,2]
[365432304,1749666658297,-667.0,0.00019835,2]
[365432305,1749666658306,-282.61,0.00019835,2]
[365432306,1749666658316,-490.0,0.00019835,2]
[365432307,1749666658328,-490.0,0.00019835,2]
[365432308,1749666658338,-490.0,0.00019835,2]
[365432309,1749666658347,-490.0,0.00019835,2]
[365432310,1749666658356,-490.0,0.00019835,2]
[365432311,1749666658366,-490.0,0.00019835,2]
[365432312,1749666658375,-490.0,0.00019835,2]
[365432313,1749666658385,-490.0,0.00019835,2]
[365432314,1749666658395,-490.0,0.00019835,2]
[365432315,1749666658405,-490.0,0.00019835,2]
[365432316,1749666658415,-490.0,0.00019835,2]
[365432317,1749666658424,-546.31,0.00019835,2]
[365432318,1749666658433,-490.0,0.00019835,2]
[365432319,1749666658443,-516.47,0.00019835,2]
[365432320,1749666658454,-490.0,0.00019835,2]
[365432321,1749666658463,-707.63,0.00019835,2]
[365432322,1749666658472,-490.0,0.00019835,2]
[365432323,1749666658482,-639.53,0.00019835,2]
[365432324,1749666658491,-326.89256205,0.00019835,2]
[365432325,1749666658500,-502.31,0.00019835,2]
[365432326,1749666658509,-490.0,0.00019835,2]
[365432327,1749666658518,-516.57,0.00019835,2]
[365432328,1749666658528,-490.0,0.00019835,2]
[365432329,1749666658538,-490.0,0.00019835,2]
[365432330,1749666658548,-490.0,0.00019835,2]
[365432331,1749666658557,-538.45,0.00019835,2]
[365432332,1749666658567,-490.0,0.00019835,2]
[365432333,1749666658576,-490.0,0.00019835,2]
[365432334,1749666658586,-406.54762309,0.00019835,2]
[365432335,1749666658595,-490.0,0.00019835,2]
[365432336,1749666658605,-396.189999,0.00019835,2]
[365432337,1749666658614,-490.0,0.00019835,2]
[365432338,1749666658624,-809.64,0.00019835,2]
[365432339,1749666658634,-490.0,0.00019835,2]
[365432340,1749666658643,-490.0,0.00019835,2]
[365432341,1749666658652,-490.0,0.00019835,2]
[365432342,1749666658662,-490.0,0.00019835,2]
[365432343,1749666658672,-490.0,0.00019835,2]
[365432344,1749666658682,-490.0,0.00019835,2]
[365432345,1749666658691,-490.0,0.00019835,2]
[365432346,1749666658703,-490.0,0.00019835,2]
[365432347,1749666658713,-490.0,0.00019835,2]
[365432348,1749666658722,-490.0,0.00019835,2]
[365432349,1749666658732,-530.15,0.00019835,2]
[365432350,1749666658742,-24.13749053,0.00019835,2]
[365432351,1749666658765,-465.86250947,0.00019835,2]
[365432352,1749666658775,-490.0,0.00019835,2]
[365432353,1749666658785,-490.0,0.00019835,2]
[365432354,1749666658795,-490.0,0.00019835,2]
[365432355,1749666658805,-25.64448233,0.00019835,2]
[365432356,1749666658821,-490.0,0.00019342,2]
[365432357,1749666658830,-464.35551767,0.00019835,2]
[365432358,1749666658840,-490.0,0.00019835,2]
[365432359,1749666658850,-490.0,0.00019835,2]
[365432360,1749666658859,-524.2,0.00019835,2]
[365432361,1749666658869,-490.0,0.00019835,2]
[365432362,1749666658879,-490.0,0.00019835,2]
[365432363,1749666658888,-711.92,0.00019835,2]
[365432364,1749666658897,-188.15,0.00019835,2]
[365432365,1749666658907,-524.6,0.00019835,2]
[365432366,1749666658917,-490.0,0.00019835,2]
[365432367,1749666658927,-490.0,0.00019835,2]
[365432368,1749666658936,-490.0,0.00019835,2]
[365432369,1749666658946,-490.0,0.00019835,2]
[365432370,1749666658958,-490.0,0.00019835,2]
[365432371,1749666658968,-2172.39,0.00019835,2]
[365432372,1749666658978,-628.46,0.00019835,2]
[365432373,1749666658987,-490.0,0.00019835,2]
[365432374,1749666658997,-738.78,0.00019835,2]
[365432375,1749666659006,-786.19,0.00019835,2]
[365432376,1749666659016,-4967.78,0.00019835,2]
[365432377,1749666659025,-490.0,0.00019835,2]
[365432378,1749666659034,-490.0,0.00019835,2]
[365432379,1749666659044,-490.0,0.00019835,2]
[365432380,1749666659054,-490.0,0.00019835,2]
[365432381,1749666659063,-697.72,0.00019835,2]
[365432382,1749666659072,-563.76,0.00019835,2]
[365432383,1749666659082,-490.0,0.00019835,2]
[365432384,1749666659092,-490.0,0.00019835,2]
[365432385,1749666659101,-330.78,0.00019835,2]
[365432386,1749666659111,-1084.41,0.00019835,2]
[365432387,1749666659120,-490.0,0.00019835,2]
[365432388,1749666659130,-524.74,0.00019835,2]
[365432389,1749666659140,-490.0,0.00019835,2]
[365432390,1749666659149,-490.0,0.00019835,2]
[365432391,1749666659159,-490.0,0.00019835,2]
[365432392,1749666659169,-490.0,0.00019835,2]
[365432393,1749666659178,-490.0,0.00019835,2]
[365432394,1749666659188,-672.06,0.00019835,2]
[365432395,1749666659197,-490.0,0.00019835,2]
[365432396,1749666659209,-490.0,0.00019835,2]
[365432397,1749666659218,-490.0,0.00019835,2]
[365432398,1749666659228,-262.38,0.00019835,2]
[365432399,1749666659238,-490.0,0.00019835,2]
[365432400,1749666659248,-2960.21,0.00019835,2]
[365432401,1749666659257,-592.64,0.00019835,2]
[365432402,1749666659267,-490.0,0.00019835,2]
[365432403,1749666659277,-6830.81,0.00019835,2]
[365432404,1749666659286,-2153.63,0.00019835,2]
[365432405,1749666659296,-622.08,0.00019835,2]
[365432406,1749666659305,-490.0,0.00019835,2]
[365432407,1749666659315,-490.0,0.00019835,2]
[365432408,1749666659325,-490.0,0.00019835,2]
[365432409,1749666659337,-952.96,0.00019835,2]
[365432410,1749666659347,-490.0,0.00019835,2]
[365432411,1749666659357,-239.32421006,0.00019835,2]
[365432412,1749666659366,-636.07,0.00019835,2]
[365432413,1749666659377,-490.0,0.00019835,2]
[365432414,1749666659386,-5835.59,0.00019835,2]
[365432415,1749666659396,-1116.73254563,0.00019835,2]
[365432416,1749666659411,-2302.35745437,0.00019835,2]
[365432417,1749666659421,-490.0,0.00019835,2]
[365432418,1749666659430,-1075.39,0.00019835,2]
[365432419,1749666659440,-602.88,0.00019835,2]
[365432420,1749666659453,-723.16,0.00019835,2]
[365432421,1749666659463,-49.38869061,0.00019835,2]
[365432422,1749666659475,-599.16130939,0.00019835,2]
[365432423,1749666659486,-490.0,0.00019835,2]
[365432424,1749666659495,-490.0,0.00019835,2]
[365432425,1749666659505,-93.27197714,0.00019835,2]
[365432426,1749666659517,-435.4286948,0.00019835,2]
[365432427,1749666659837,-490.0,0.00019506,2]
[365432428,1749666659847,-281.04932806,0.00019835,2]
[365432429,1749666659857,-490.0,0.00019835,2]
[365432430,1749666659867,-374.14,0.00019835,2]
[365432431,1749666659877,-729.02,0.00019835,2]
[365432432,1749666659887,-971.76,0.00019835,2]
[365432433,1749666659897,-490.0,0.00019835,2]
[365432434,1749666659907,-926.65,0.00019835,2]
[365432435,1749666659916,-490.0,0.00019835,2]
[365432436,1749666659926,-490.0,0.00019835,2]
[365432437,1749666659937,-490.0,0.00019835,2]
[365432438,1749666659947,-490.0,0.00019835,2]
[365432439,1749666659962,-516.06,0.00019835,2]
[365432440,1749666659973,-490.0,0.00019835,2]
[365432441,1749666659984,-490.0,0.00019835,2]
[365432442,1749666659995,-490.0,0.00019835,2]
[365432443,1749666660006,-490.0,0.00019835,2]
[365432444,1749666660017,-490.0,0.00019835,2]
[365432445,1749666660028,-490.0,0.00019835,2]
[365432446,1749666660038,-472.4885109,0.00019835,2]
[365432447,1749666660142,-17.5114891,0.00019835,2]
[365432448,1749666660153,-544.83,0.00019835,2]
[365432449,1749666660163,-490.0,0.00019835,2]
[365432450,1749666660173,-490.0,0.00019835,2]
[365432451,1749666660183,-490.0,0.00019835,2]
[365432452,1749666660193,-151.14674015,0.00019835,2]
[365432453,1749666660279,-447.64325985,0.00019835,2]
[365432454,1749666660289,-574.23,0.00019835,2]
[365432455,1749666660300,-490.0,0.00019835,2]
[365432456,1749666660310,-490.0,0.00019835,2]
[365432457,1749666660321,-490.0,0.00019835,2]
[365432458,1749666660335,-239.33756615,0.00019835,2]
[365432459,1749666660348,-250.66243385,0.00019835,2]
[365432460,1749666660358,-490.0,0.00019835,2]
[365432461,1749666660369,-262.08701796,0.00019835,2]
[365432462,1749666660382,-375.58298204,0.00019835,2]
[365432463,1749666660392,-733.35,0.00019835,2]
[365432464,1749666660403,-490.0,0.00019835,2]
[365432465,1749666660413,-681.45,0.00019835,2]
[365432466,1749666660424,-311.6490286,0.00019835,2]
[365432467,1749666660436,-178.3509714,0.00019835,2]
[365432468,1749666660446,-490.0,0.00019835,2]
[365432469,1749666660459,-490.0,0.00019835,2]
[365432470,1749666660470,-546.5120286,0.00019835,2]
[365432471,1749666660487,-121.0579714,0.00019835,2]
[365432472,1749666660496,-422.84656473,0.00019835,2]
[365432474,1749666821524,174.5,0.00014585,2]
[365432475,1749667039518,1325.62,0.0001518,2]
[365432478,1749667071367,405.03,0.00013699,2]
[365432479,1749667561964,404.888,0.0001698,2]
[365432480,1749667628119,-250.0,0.00017066,2]
[365432481,1749667628141,-436.32,0.00017229,2]
[365432482,1749667628163,-161.35111196,0.00017276,2]
[365432483,1749667628184,-1000.0,0.00017313,2]
[365432484,1749667628204,-376.38,0.00017376,2]
[365432485,1749667628225,-666.0,0.00017386,2]
[365432486,1749667628245,-873.95752359,0.00017386,2]
[365432487,1749667628266,-165.41,0.00017426,2]
[365432488,1749667628287,-1325.62,0.00017443,2]
[365432489,1749667628307,-161.35111195,0.00017692,2]
[365432490,1749667628330,-204.0,0.00017846,2]
[365432491,1749667628352,-204.0,0.00017846,2]
[365432492,1749667628374,-300.7,0.00017875,2]
[365432493,1749667628395,-151.0,0.00017898,2]
[365432494,1749667628416,-300.0,0.00017906,2]
[365432495,1749667628437,-202.90561679,0.00017907,2]
[365432496,1749667628458,-500.0,0.00017907,2]
[365432497,1749667628479,-500.0,0.00017907,2]
[365432498,1749667628500,-500.0,0.00017907,2]
[365432499,1749667628524,-429.4530038,0.00017907,2]
[365432500,1749667630970,2073.23943,0.00019393,30]
[365432501,1749667643122,-70.5469962,0.00017907,2]
[365432502,1749667643143,-500.0,0.00017907,2]
[365432503,1749667643165,-500.0,0.00017907,2]
[365432504,1749667643186,-317.6266264,0.00017907,2]
[365432505,1749667647122,555.92,0.0001698,2]
[365432506,1749667653080,-851.4,0.0001747,2]
[365432507,1749667653103,-182.3733736,0.00017907,2]
[365432508,1749667653126,-322.07340101,0.00017907,2]
[365432509,1749667653148,-286.13424758,0.00017907,2]
[365432510,1749667696111,503.28265122,0.00024658,120]
[365432515,1749667811646,204.0,0.00016846,2]
[365432527,1749667832299,-340.667789,0.00017375,2]
[365432528,1749667832310,-150.0,0.00017463,7]
[365432529,1749667832321,-157.86060798,0.00017475,2]
[365432530,1749667832393,-1694.55939202,0.00017475,2]
[365432531,1749667832404,-189.13738218,0.00017906,2]
[365432532,1749667832420,-110.86261782,0.00017906,2]
[365432533,1749667832433,-504.23,0.00017907,2]
[365432534,1749667832443,-493.66,0.00017907,2]
[365432535,1749667832456,-304.89,0.00017907,2]